Cogmind - Beta 10.2 @@@ ROGUE MODE // 2021.03.13 @ 12:00:52 Player: NuggetPls Result: Self-destructed Performance ------------- Evolutions (1) 500 Regions Visited (3) 600 Robots Destroyed (3) 15 Value Destroyed (30) 30 Prototype IDs (1) 20 Alien Tech Used (0) 0 Bonus (200) 200 TOTAL SCORE: 1365 Bonus ------- Pacifist 200 Cogmind --------- Core Integrity 138/400 Matter 300/300 Energy 41/100 System Corruption 0% Temperature Cool (0) Movement Flying (37) Location -9/Storage Parts ------- > --- POWER (1) -------- (None) > --- PROPULSION (4) --- Flight Unit Flight Unit > --- UTILITY (2) ------ (None) > --- WEAPON (2) ------- (None) > --- INVENTORY (4) ---- Wheel Wheel Cooled Aerolev Unit Peak State ------------ > --- POWER ------------ (None) > --- PROPULSION ------- Cooled Aerolev Unit > --- UTILITY ---------- (None) > --- WEAPON ----------- Heavy Assault Rifle > --- INVENTORY -------- Wheel Wheel [Rating: 8] Favorites ----------- Power None Propulsion Flight Unit Wheel Wheel Hover Unit Cooled Aerolev Unit Flight Unit Flight Unit Utility None Weapon Heavy Assault Rifle Ballistic Gun Heavy Assault Rifle Build | -11 -10 -9 -9 ------- Run | Scr Mat Mat Sto Slots Evolved 2 | . . 2 . Power . | . . . . Propulsion 2 | . . 2 . Utility . | . . . . Weapon . | . . . . Parts Attached 8 | 2 . . 6 Power . | . . . . Engine . | . . . . Core . | . . . . Reactor . | . . . . Propulsion 7 | 2 . . 5 Treads . | . . . . Leg . | . . . . Wheel 2 | 2 . . . Hover 1 | . . . 1 Flight 4 | . . . 4 Utility . | . . . . Device . | . . . . Storage . | . . . . Processor . | . . . . Hackware . | . . . . Protection . | . . . . Artifact . | . . . . Weapon 1 | . . . 1 Energy Gun . | . . . . Energy Cannon . | . . . . Ballistic Gun 1 | . . . 1 Ballistic Cannon . | . . . . Launcher . | . . . . Special Weapon . | . . . . Impact Weapon . | . . . . Slashing Weapon . | . . . . Piercing Weapon . | . . . . Special Melee Weapon . | . . . . Unidentified Prototypes 1 | . . . 1 Parts Lost 3 | . . . 3 Power . | . . . . Propulsion 2 | . . . 2 Utility . | . . . . Weapon 1 | . . . 1 Highest Loss Streak 3 | . . . 3 Average Slot Usage (%) 12 | . . . 19 Hover 5 | . . . 8 Flight 5 | . . . 9 Ballistic Gun 1 | . . . 1 Naked Turns 71 | . 45 22 4 Heaviest Build 3 | . . . 3 Greatest Support 16 | 10 3 3 16 Greatest Overweight (x) . | . . . . Average Overweight (x) . | . . . . Largest Inventory Capacity 4 | 4 4 4 4 Average Capacity 4 | 4 4 4 4 Most Carried 3 | 2 2 2 3 Average Carried 2 | 1 2 2 2 Final Capacity 4 | 4 4 4 4 Final Carried 3 | 2 2 2 3 Class Distribution -------------------- 100% | Mutant Dominant Class ---------------- Mutant | -10/Materials Mutant | -9/Materials Mutant | -9/Storage Resources | -11 -10 -9 -9 ----------- Run | Scr Mat Mat Sto Matter Collected 284 | 220 . . 64 Remotely . | . . . . Salvage Created 57 | . . . 57 Parts 9 | . . . 9 Haulers Intercepted . | . . . . Recyclers Shooed . | . . . . Parts Field Recycled . | . . . . Retrieved Matter . | . . . . Parts Self-Destructed . | . . . . Prevented . | . . . . Kills | -11 -10 -9 -9 ------- Run | Scr Mat Mat Sto Combat Hostiles Destroyed 3 | . . . 3 Melee 1 | . . . 1 Guns 2 | . . . 2 Classes Destroyed 1 | . . . 1 Swarmer 3 | . . . 3 Best Kill Streak 3 | . . . 3 Combat Bots Only 3 | . . . 3 Max Kills in Single Turn 1 | . . . 1 Gunslinging . | . . . . Exploded . | . . . . Melee 1 | . . . 1 Uniques/NPCs Destroyed . | . . . . Combat | -11 -10 -9 -9 -------- Run | Scr Mat Mat Sto Damage Taken 526 | . 82 60 384 Core 344 | . 82 60 202 Absorbed by Shields . | . . . . Core Remaining (%) 83 | 100 67 . . Volleys Fired 10 | . . . 10 Largest 1 | . . . 1 Hottest 23 | . . . 23 Shots Fired 10 | . . . 10 Gun 10 | . . . 10 Cannon . | . . . . Launcher . | . . . . Special . | . . . . Kinetic 10 | . . . 10 Thermal . | . . . . Explosive . | . . . . Electromagnetic . | . . . . Robot Hit Streak 3 | . . . 3 Robot Miss Streak 3 | . . . 3 Penetration Max . | . . . . Secondary Targets . | . . . . Shots Hit Robots 6 | . . . 6 Core Hits 6 | . . . 6 Critical Hits . | . . . . Critical Kills . | . . . . Critical Parts Destroyed . | . . . . Melee Attacks . | . . . . Impact . | . . . . Slashing . | . . . . Piercing . | . . . . Sneak Attacks . | . . . . Combat Hostiles . | . . . . Follow-up Attacks . | . . . . Damage Inflicted 121 | . . . 121 Guns 103 | . . . 103 Cannons . | . . . . Explosions . | . . . . Melee . | . . . . Ramming 18 | . . . 18 Kinetic 103 | . . . 103 Thermal . | . . . . Explosive . | . . . . Electromagnetic . | . . . . Impact . | . . . . Slashing . | . . . . Piercing . | . . . . Highest Corruption . | . . . . Average Corruption . | . . . . Corruption Purged . | . . . . Overload Shots . | . . . . Overflow Damage . | . . . . Projectiles . | . . . . Explosions . | . . . . Melee . | . . . . Knockbacks . | . . . . Impact . | . . . . Kinetic . | . . . . Secondary . | . . . . Self-Inflicted Damage 7 | . . . 7 Shots . | . . . . Rammed 7 | . . . 7 Targets Rammed 7 | . . . 7 Kicked . | . . . . Crushed . | . . . . Highest Temperature . | . . . . Average Temperature . | . . . . Received Heat Transfer 114 | . 42 18 54 Siege Activations . | . . . . Robots Corrupted . | . . . . Combat Hostiles . | . . . . Parts Fried . | . . . . Impact Corruptions . | . . . . Robots Melted . | . . . . Combat Hostiles . | . . . . Parts Melted . | . . . . Heat Transferred . | . . . . Parts Sabotaged . | . . . . Parts Stolen . | . . . . Parts Stripped . | . . . . Power Chain Reactions . | . . . . Missiles Intercepted . | . . . . Alert | -11 -10 -9 -9 ------- Run | Scr Mat Mat Sto Peak Influence 95 | . 45 33 95 Initial 18 | . . 18 13 Average 33 | . 9 24 50 Maximum Alert Level . | . . . . Low Security (%) 100 | 100 100 100 100 Level 1 . | . . . . Level 2 . | . . . . Level 3 . | . . . . Level 4 . | . . . . Level 5 . | . . . . High Security . | . . . . Max Security . | . . . . Squads Dispatched 1 | . 1 . . Investigation 1 | . 1 . . Extermination . | . . . . Reinforcement . | . . . . Assault . | . . . . Garrison . | . . . . Intercept . | . . . . Construction Impeded . | . . . . Haulers Reinforced . | . . . . Stealth | -11 -10 -9 -9 --------- Run | Scr Mat Mat Sto Distress Signals . | . . . . Communications Jammed . | . . . . Distress Signals . | . . . . Times Spotted 12 | . 5 1 6 Peak Tracking Total 6 | . 4 1 6 Tactical Retreats 1 | . 1 . . Traps | -11 -10 -9 -9 ------- Run | Scr Mat Mat Sto Traps Triggered 1 | . 1 . . Indirectly . | . . . . Trap Hack Attempts . | . . . . Triggered . | . . . . Disarmed . | . . . . Reprogrammed . | . . . . Reused . | . . . . Traps Extracted . | . . . . Installed . | . . . . Triggered . | . . . . Machines | -11 -10 -9 -9 ---------- Run | Scr Mat Mat Sto Machines Disabled . | . . . . Max in Single Turn . | . . . . Machines Sabotaged . | . . . . Garrisons Compromised . | . . . . Overloaded Fab Kills . | . . . . Fab Network Shutdowns . | . . . . Hacking | -11 -10 -9 -9 --------- Run | Scr Mat Mat Sto Machines Accessed 1 | . . . 1 Terminals 1 | . . . 1 Fabricators . | . . . . Repair Stations . | . . . . Recycling Units . | . . . . Scanalyzers . | . . . . Garrison Access . | . . . . Total Hacks 2 | . . . 2 Successful 1 | . . . 1 Failed 1 | . . . 1 Catastrophic . | . . . . Database Lockouts . | . . . . Manual . | . . . . Terminals 2 | . . . 2 Fabricators . | . . . . Repair Stations . | . . . . Recycling Units . | . . . . Scanalyzers . | . . . . Garrison Access . | . . . . Terminal Hacks 1 | . . . 1 Open Door 1 | . . . 1 Fabricator Hacks . | . . . . Repair Station Hacks . | . . . . Recycling Unit Hacks . | . . . . Scanalyzer . | . . . . Garrison Access Hacks . | . . . . Unauthorized Hacks . | . . . . Terminals . | . . . . Fabricators . | . . . . Repair Stations . | . . . . Recycling Units . | . . . . Scanalyzers . | . . . . Garrison Access . | . . . . Data Cores Recovered . | . . . . Used . | . . . . Hacking Detections . | . . . . Full Trace Events . | . . . . Feedback Events . | . . . . Feedback Blocked . | . . . . Robot Schematics Acquired . | . . . . Robots Built . | . . . . Matter . | . . . . Time . | . . . . Total Robot Build Rating . | . . . . Part Schematics Acquired . | . . . . Parts Built . | . . . . Matter . | . . . . Time . | . . . . Total Part Build Rating . | . . . . Parts Repaired . | . . . . Time . | . . . . Parts Recycled . | . . . . Recycled Matter . | . . . . Retrieved Matter . | . . . . Retrieved Components . | . . . . Parts Scanalyzed . | . . . . Part Schematics Acquired . | . . . . Parts Damaged . | . . . . Bothacking | -11 -10 -9 -9 ------------ Run | Scr Mat Mat Sto Used RIF Installer . | . . . . Robots Hacked . | . . . . Non-combat . | . . . . Combat . | . . . . Robot Hacks Applied . | . . . . Relay Couplers Released . | . . . . Robots Rewired . | . . . . Allies Hacked . | . . . . Hacks Repelled . | . . . . Allies | -11 -10 -9 -9 -------- Run | Scr Mat Mat Sto Total Allies . | . . . . Largest Group . | . . . . Highest-Rated Group . | . . . . Highest-Rated Ally . | . . . . Total Orders . | . . . . Ally Attacks . | . . . . Total Damage . | . . . . Kills . | . . . . Allies Corrupted . | . . . . Allies Melted . | . . . . Intel | -11 -10 -9 -9 ------- Run | Scr Mat Mat Sto Robot Analysis Total . | . . . . Derelict Logs Recovered . | . . . . Drone Launches . | . . . . Drone Recoveries . | . . . . Exploration | -11 -10 -9 -9 ------------- Run | Scr Mat Mat Sto Turns Passed 215 | 25 45 22 123 Spaces Moved 302 | 40 90 41 131 Core 175 | 38 90 41 6 Treads . | . . . . Legs . | . . . . Wheels 2 | 2 . . . Hover 113 | . . . 113 Flight 12 | . . . 12 Fastest Speed 31 | 50 50 50 31 Average Speed 49 | 51 50 50 48 Slowest Speed 80 | 80 50 50 50 Overloaded Moves . | . . . . Propulsion Burnouts . | . . . . Robots Hopped . | . . . . Cave-ins Triggered . | . . . . Exploration Rate (%) 14 | 3 19 7 29 Regions Visited 3 Branch Regions 1 Pre-discovered Areas . | . . . . Known Exits Taken . | . . . . Unknown Exits Taken 3 | 1 1 1 . Scrap Searched . | . . . . Spaces Dug . | . . . . Terrain Destroyed . | . . . . Melee . | . . . . Projectile . | . . . . AOE . | . . . . Terrain Rammed . | . . . . Walls Destroyed . | . . . . Machines Disabled . | . . . . Actions | -11 -10 -9 -9 --------- Run | Scr Mat Mat Sto Total 351 | 43 89 41 178 Wait 23 | . . 1 22 Move 299 | 39 89 40 131 Hop . | . . . . Pick Up 1 | . . . 1 Fast Attach 7 | 2 . . 5 Attach 1 | . . . 1 Detach 3 | 2 . . 1 Swap . | . . . . Drop . | . . . . Fire 10 | . . . 10 Melee . | . . . . Ram 7 | . . . 7 Kick . | . . . . Crush . | . . . . Escape Stasis . | . . . . Rewire . | . . . . Trap . | . . . . Miscellaneous . | . . . . Route ------- -11/Scrapyard -10/Materials -9/Materials -9/Storage History --------- Turn | Location | Event 4 | -11/Scrapyard | Discovered new exit (range 13) 26 | -11/Scrapyard | Entered Materials 65 | -10/Materials | Discovered new exit (range 13) 71 | -10/Materials | Entered another Materials area 71 | -9/Materials | Evolved 2 slots: Propulsion x2 82 | -9/Materials | Discovered new exit (range 5) 93 | -9/Materials | Entered Storage 199 | -9/Storage | Core integrity fell below 50% 216 | -9/Storage | Self-destructed Last Messages --------------- GOAL=ESCAPE 00095_ Connecting with Door Terminal... 00095_ Current location identified: Storage >>Open Sealed Heavy Doors opened. 00096_ Acquired Prototype Hover Unit. 00096_ Identified Cld. Aerolev Unit. 00136_ K-01 Serf collects debris. 00152_ Acquired Hvy. Assault Rifle. 00156_ S-10 Pest destroyed. 00174_ Hvy. Assault Rifle destroyed. 00175_ Slammed into S-10 Pest. 00177_ Acquired 17 matter. 00177_ Slammed into S-10 Pest. 00181_ S-10 Pest destroyed. 00181_ Destabilizing: Core damaged (-20). 00182_ Acquired 7 matter. 00184_ Acquired Flight Unit. 00192_ Acquired 40 matter. 00204_ Flight Unit destroyed. Map ----- +----------------------------------------------------+ | ?????????????????????????????????????? | | #?????????????????????????????????????? | | #?????????????????????????????????????? | | #??????????? ?????????????????????????? | | #?????????? ?????????????????????????? | | #?????????? ?????????????????????????? | | #?????????? ?????????????????????????? | | #?????????? ?????????????????????????? | | #???#+#???? #?????????????????????????? | | #???# #???? #?????????????????????????? | | #???# #???? #?????????????????????????? | | #???# #???# ##????????????????????????? | | ##### ##### T#????????????????????????? | | #?????????????????????????? | | #?????????????????????????? | | #?????????????????????????? | | #?#???????????????????????? | | ######## #T#???????????????????????? | | #??????# # #???????????????????????? | | ???????# + "?????????##########????? | | ???????# # #?????????# #????? | | ??????## ####????????# % #????? | | ??????+ #????????#=! #????? | | ??????# ##### #????????#%[ [ #????? | | ??????# #???# ##########[%[ !+????? | | ??????+ #???# a Y/@ * #????? | | ??????## ????############ %[ #????? | | ???????# ???????????????# #????? | | ???????# ???????????????# !#????? | | ???????# ???????????????##########????? | | ???????# ?????????????????????????????? | | ???????? ?????????????????????????????? | | ???????? ?????????????????????????????? | | ??????????????????????????????????????? | | ??????????????????????????????????????? | | ??????????????????????????????????????? | | ??????????????????????????????????????? | | ??????????????????????????????????????? | | ??????????????????????????????????????? | | ??????????????????????????????????????? | | ??????????????????????????????????????? | | ??????????????????????????????????????? | | ??????????????????????????????????????? | | ??????????????????????????????????????? | | ??????????????????????????????????????? | | ??????????????????????????????????????? | | ??????????????????????????????????????? | | ??????????????????????????????????????? | | ??????????????????????????????????????? | | ??????????????????????????????????????? | +----------------------------------------------------+ Best States ------------- Heat Dissipation 28 Energy Generation 5 Energy Capacity 100 Matter Stores 300 Matter Capacity 300 Sight Range 16 Terrain Scan Density 10 Evasion (%) 62 Item Schematics ----------------- None Robot Schematics ------------------ None Fabricated ------------ Nothing Alien Tech Used ----------------- None Achievements -------------- None Challenges ------------ None Game ------ Seed DataThiefWarhead Manual? 0 Play Time 00:07:01 Cumulative 1.8 hours Start 2021.03.13 @ 11:48:04 End 2021.03.13 @ 12:00:52 Sessions 1 Manual Loads 0 Difficulty Rogue Special Mode None Game No. 4 Rogue 4 Adventurer 0 Explorer 0 Win Type - Total 0 Types 0/0/0/0/0/0/0/0/0 Lore% 0 Gallery% 5 Achievement% 7 Wizard Run 0 Options --------- ASCII 0 Keyboard 1 Movement Numpad Keybinds 0 Fullscreen 2 Font 18/SmallcapsGlow Map View 76x50 Tactical HUD 1 Map Filters NONE Filters NONE Steam 1 RUN: 80ff3c54-351b-40df-ad0e-59550925f0cf